[Event "Early-Titled-Tuesday-Blitz-June-18-2024"]
[Site "Chess.com"]
[Date "2024.06.18"]
[Round "2"]
[White "TigrVShlyape"]
[Black "SaqoChess_Twitch"]
[Result "1-0"]
[WhiteElo "2991"]
[BlackElo "2649"]
[TimeControl "180+1"]
[EndTime "8:18:29 PDT"]
[Termination "TigrVShlyape won by checkmate"]

1. e4 {[%clk 0:03:00.9]} 1... c5 {[%clk 0:02:59.8]} 2. Nf3 {[%clk 0:03:00.2]}
2... d6 {[%clk 0:02:56.7]} 3. d4 {[%clk 0:02:59]} 3... cxd4 {[%clk 0:02:57.6]}
4. Nxd4 {[%clk 0:02:58.4]} 4... Nf6 {[%clk 0:02:58.2]} 5. Nc3 {[%clk 0:02:57.1]}
5... g6 {[%clk 0:02:57.9]} 6. Be2 {[%clk 0:02:56.2]} 6... Bg7 {[%clk 0:02:57.6]}
7. O-O {[%clk 0:02:56.6]} 7... O-O {[%clk 0:02:57.8]} 8. Be3 {[%clk 0:02:57]}
8... Nc6 {[%clk 0:02:58.2]} 9. Qd2 {[%clk 0:02:57.3]} 9... d5 {[%clk 0:02:57]}
10. Rfd1 {[%clk 0:02:56.1]} 10... e6 {[%clk 0:02:48.2]} 11. exd5 {[%clk
0:02:47]} 11... Nxd5 {[%clk 0:02:43.3]} 12. Nxd5 {[%clk 0:02:33.5]} 12... exd5
{[%clk 0:02:34.8]} 13. c3 {[%clk 0:02:29.3]} 13... Be6 {[%clk 0:02:29.9]} 14.
Nxc6 {[%clk 0:02:19.3]} 14... bxc6 {[%clk 0:02:27.1]} 15. Bd4 {[%clk 0:02:19.9]}
15... a5 {[%clk 0:02:07.9]} 16. b4 {[%clk 0:02:18]} 16... axb4 {[%clk 0:02:07]}
17. cxb4 {[%clk 0:02:15.8]} 17... Qb8 {[%clk 0:02:02.6]} 18. a4 {[%clk
0:02:13.7]} 18... Rc8 {[%clk 0:01:57.5]} 19. a5 {[%clk 0:02:12.6]} 19... Bxd4
{[%clk 0:01:48.5]} 20. Qxd4 {[%clk 0:02:10.6]} 20... c5 {[%clk 0:01:44.9]} 21.
bxc5 {[%clk 0:02:09.4]} 21... Qc7 {[%clk 0:01:45.5]} 22. a6 {[%clk 0:02:07.4]}
22... Qxc5 {[%clk 0:01:46]} 23. Qf4 {[%clk 0:01:39.6]} 23... Qc7 {[%clk
0:01:40.4]} 24. Qg5 {[%clk 0:01:36.3]} 24... Qd8 {[%clk 0:01:40.2]} 25. Qe3
{[%clk 0:01:34.4]} 25... Rc7 {[%clk 0:01:35.1]} 26. Qd4 {[%clk 0:01:23.3]} 26...
Qe7 {[%clk 0:01:25.2]} 27. h4 {[%clk 0:01:22.7]} 27... Rc6 {[%clk 0:01:14]} 28.
Rdc1 {[%clk 0:01:12.4]} 28... Rd6 {[%clk 0:00:50.2]} 29. Bd3 {[%clk 0:01:04.1]}
29... Bc8 {[%clk 0:00:48.3]} 30. a7 {[%clk 0:00:59.9]} 30... Rd7 {[%clk
0:00:25.2]} 31. Rxc8+ {[%clk 0:00:57.4]} 31... Rxc8 {[%clk 0:00:25.7]} 32. a8=Q
{[%clk 0:00:57.1]} 32... Rxa8 {[%clk 0:00:26.4]} 33. Rxa8+ {[%clk 0:00:56.4]}
33... Rd8 {[%clk 0:00:27.3]} 34. Rxd8+ {[%clk 0:00:55.6]} 34... Qxd8 {[%clk
0:00:28.2]} 35. h5 {[%clk 0:00:54.8]} 35... Qg5 {[%clk 0:00:27.6]} 36. Be2
{[%clk 0:00:49.7]} 36... Qc1+ {[%clk 0:00:24.9]} 37. Kh2 {[%clk 0:00:48.4]}
37... Qc2 {[%clk 0:00:21.7]} 38. Bf3 {[%clk 0:00:47.2]} 38... Qc7+ {[%clk
0:00:19.4]} 39. g3 {[%clk 0:00:46.6]} 39... Qe7 {[%clk 0:00:12.6]} 40. h6 {[%clk
0:00:42.7]} 40... Qf8 {[%clk 0:00:12.7]} 41. Qf4 {[%clk 0:00:39.5]} 41... d4
{[%clk 0:00:12.7]} 42. Bd5 {[%clk 0:00:35.3]} 42... d3 {[%clk 0:00:12.6]} 43.
Bc4 {[%clk 0:00:35.4]} 43... Qe7 {[%clk 0:00:12]} 44. Bxd3 {[%clk 0:00:32.8]}
44... Qd8 {[%clk 0:00:07.8]} 45. Bc4 {[%clk 0:00:32.8]} 45... Qf8 {[%clk
0:00:05.5]} 46. Bd5 {[%clk 0:00:31.6]} 46... Kh8 {[%clk 0:00:01.5]} 47. Qf6+
{[%clk 0:00:30.5]} 47... Kg8 {[%clk 0:00:01.3]} 48. Kg2 {[%clk 0:00:30.8]} 48...
Qxh6 {[%clk 0:00:01.2]} 49. Qxf7+ {[%clk 0:00:30.7]} 49... Kh8 {[%clk
0:00:02.1]} 50. Qg8# {[%clk 0:00:30.6]} 1-0

[Event "Early-Titled-Tuesday-Blitz-June-18-2024"]
[Site "Chess.com"]
[Date "2024.06.18"]
[Round "2"]
[White "Goryachkina"]
[Black "FabianoCaruana"]
[Result "0-1"]
[WhiteElo "2677"]
[BlackElo "3123"]
[TimeControl "180+1"]
[EndTime "8:18:30 PDT"]
[Termination "FabianoCaruana won on time"]

1. d4 {[%clk 0:02:59.6]} 1... Nf6 {[%clk 0:02:59.9]} 2. c4 {[%clk 0:02:59.2]}
2... e6 {[%clk 0:03:00.1]} 3. Nf3 {[%clk 0:02:58.2]} 3... b6 {[%clk 0:03:00.1]}
4. g3 {[%clk 0:02:57.2]} 4... Ba6 {[%clk 0:03:00.2]} 5. Qc2 {[%clk 0:02:52.5]}
5... Bb4+ {[%clk 0:02:57.9]} 6. Bd2 {[%clk 0:02:49.8]} 6... Bxd2+ {[%clk
0:02:57.4]} 7. Nbxd2 {[%clk 0:02:48.2]} 7... c5 {[%clk 0:02:53.8]} 8. Bg2 {[%clk
0:02:35.9]} 8... Bb7 {[%clk 0:02:51.3]} 9. O-O {[%clk 0:02:28.4]} 9... O-O
{[%clk 0:02:48.2]} 10. Rfd1 {[%clk 0:02:25.7]} 10... cxd4 {[%clk 0:02:47.4]} 11.
Nxd4 {[%clk 0:02:25.4]} 11... Bxg2 {[%clk 0:02:48]} 12. Kxg2 {[%clk 0:02:25.4]}
12... Qc8 {[%clk 0:02:48.6]} 13. Rac1 {[%clk 0:02:15.5]} 13... a6 {[%clk
0:02:48.4]} 14. Kg1 {[%clk 0:01:56.6]} 14... Qb7 {[%clk 0:02:45.8]} 15. N2f3
{[%clk 0:01:56]} 15... d6 {[%clk 0:02:38.6]} 16. Nb3 {[%clk 0:01:32.2]} 16...
Rd8 {[%clk 0:02:36.5]} 17. c5 {[%clk 0:01:24.8]} 17... bxc5 {[%clk 0:02:35.3]}
18. Nxc5 {[%clk 0:01:24.8]} 18... Qe7 {[%clk 0:02:32.6]} 19. Ne4 {[%clk
0:01:06.2]} 19... Nxe4 {[%clk 0:02:32.2]} 20. Qxe4 {[%clk 0:01:07.1]} 20... Ra7
{[%clk 0:02:32.8]} 21. Rc2 {[%clk 0:00:58.4]} 21... d5 {[%clk 0:02:25.2]} 22.
Qd4 {[%clk 0:00:53.6]} 22... Rb7 {[%clk 0:02:20.8]} 23. Rdc1 {[%clk 0:00:53.7]}
23... h6 {[%clk 0:02:07]} 24. b3 {[%clk 0:00:52.9]} 24... Nd7 {[%clk 0:01:59.6]}
25. Rc7 {[%clk 0:00:50.4]} 25... Rxc7 {[%clk 0:01:57.3]} 26. Rxc7 {[%clk
0:00:50.4]} 26... Qd6 {[%clk 0:01:57.6]} 27. Qa7 {[%clk 0:00:44.4]} 27... e5
{[%clk 0:01:51.5]} 28. Qb7 {[%clk 0:00:36.3]} 28... d4 {[%clk 0:01:36.6]} 29.
Nd2 {[%clk 0:00:29.8]} 29... Qe6 {[%clk 0:01:21.3]} 30. Nc4 {[%clk 0:00:20.1]}
30... Nf6 {[%clk 0:01:17.2]} 31. Re7 {[%clk 0:00:13.1]} 31... Qf5 {[%clk
0:01:06.9]} 32. Rxf7 {[%clk 0:00:12.4]} 32... Kh8 {[%clk 0:00:47]} 33. Rxg7
{[%clk 0:00:08.9]} 33... e4 {[%clk 0:00:43.9]} 34. Qf7 {[%clk 0:00:07.5]} 34...
e3 {[%clk 0:00:18.2]} 35. f3 {[%clk 0:00:07.7]} 35... d3 {[%clk 0:00:17.5]} 36.
exd3 {[%clk 0:00:03.9]} 36... e2 {[%clk 0:00:17.3]} 37. Kf2 {[%clk 0:00:03.5]}
37... Re8 {[%clk 0:00:13.6]} 38. Ke1 {[%clk 0:00:01.1]} 38... Qxd3 {[%clk
0:00:10.9]} 0-1

[Event "Early-Titled-Tuesday-Blitz-June-18-2024"]
[Site "Chess.com"]
[Date "2024.06.18"]
[Round "2"]
[White "milovichalex"]
[Black "Yeritsyaan"]
[Result "0-1"]
[WhiteElo "2413"]
[BlackElo "2672"]
[TimeControl "180+1"]
[EndTime "8:18:30 PDT"]
[Termination "Yeritsyaan won by checkmate"]

1. e4 {[%clk 0:02:46.3]} 1... c5 {[%clk 0:02:53.4]} 2. Nf3 {[%clk 0:02:41.4]}
2... e6 {[%clk 0:02:53.6]} 3. d4 {[%clk 0:02:41.4]} 3... cxd4 {[%clk 0:02:54.5]}
4. Nxd4 {[%clk 0:02:42.1]} 4... a6 {[%clk 0:02:55.1]} 5. Nc3 {[%clk 0:02:42.6]}
5... Qc7 {[%clk 0:02:55.3]} 6. Bd3 {[%clk 0:02:41.9]} 6... Bb4 {[%clk
0:02:52.1]} 7. O-O {[%clk 0:02:39.4]} 7... Nf6 {[%clk 0:02:51.3]} 8. Nce2 {[%clk
0:02:38]} 8... O-O {[%clk 0:02:50.2]} 9. Ng3 {[%clk 0:02:37.9]} 9... b5 {[%clk
0:02:49.6]} 10. Bg5 {[%clk 0:02:37]} 10... Be7 {[%clk 0:02:46.6]} 11. Nh5 {[%clk
0:02:36.6]} 11... Qe5 {[%clk 0:02:42.9]} 12. Nf3 {[%clk 0:02:32]} 12... Qc5
{[%clk 0:02:42.9]} 13. Nxf6+ {[%clk 0:02:11.6]} 13... gxf6 {[%clk 0:02:42.9]}
14. Bh6 {[%clk 0:02:07.4]} 14... Re8 {[%clk 0:02:42.9]} 15. Nd4 {[%clk
0:01:54.6]} 15... Kh8 {[%clk 0:02:33.8]} 16. Nb3 {[%clk 0:01:48.8]} 16... Qb6
{[%clk 0:02:18.1]} 17. Qh5 {[%clk 0:01:44.9]} 17... Rg8 {[%clk 0:02:06.5]} 18.
Qxf7 {[%clk 0:01:41.5]} 18... Nc6 {[%clk 0:02:04]} 19. Rae1 {[%clk 0:01:17]}
19... Bb7 {[%clk 0:02:03.4]} 20. Re3 {[%clk 0:01:15]} 20... Qd8 {[%clk
0:01:11.4]} 21. Qh5 {[%clk 0:00:59.7]} 21... Ne5 {[%clk 0:01:02.5]} 22. Rg3
{[%clk 0:00:50.6]} 22... Rxg3 {[%clk 0:00:55.3]} 23. hxg3 {[%clk 0:00:50.6]}
23... Qe8 {[%clk 0:00:45.2]} 24. Qh4 {[%clk 0:00:44.2]} 24... Qg6 {[%clk
0:00:43.1]} 25. f4 {[%clk 0:00:43.3]} 25... Nxd3 {[%clk 0:00:43]} 26. cxd3
{[%clk 0:00:40.5]} 26... Rg8 {[%clk 0:00:42.6]} 27. Rf3 {[%clk 0:00:33.4]} 27...
Bd8 {[%clk 0:00:39.3]} 28. Nc5 {[%clk 0:00:26.3]} 28... Bc6 {[%clk 0:00:36.4]}
29. Kh2 {[%clk 0:00:21.2]} 29... f5 {[%clk 0:00:34.1]} 30. Qh3 {[%clk
0:00:20.5]} 30... d6 {[%clk 0:00:21.6]} 31. exf5 {[%clk 0:00:19.5]} 31... exf5
{[%clk 0:00:21.1]} 32. Nb3 {[%clk 0:00:16.1]} 32... Bxf3 {[%clk 0:00:20.9]} 33.
gxf3 {[%clk 0:00:17]} 33... Re8 {[%clk 0:00:20.5]} 34. Nd4 {[%clk 0:00:15.1]}
34... Bb6 {[%clk 0:00:19.6]} 35. Nxf5 {[%clk 0:00:14.3]} 35... Re2+ {[%clk
0:00:19]} 36. Kh1 {[%clk 0:00:12.8]} 36... Re1+ {[%clk 0:00:17.5]} 37. Kh2
{[%clk 0:00:12.7]} 37... Qe6 {[%clk 0:00:12.8]} 38. Qg4 {[%clk 0:00:06.8]} 38...
Qe2+ {[%clk 0:00:10.4]} 39. Kh3 {[%clk 0:00:07.1]} 39... Rh1# {[%clk 0:00:11.3]}
0-1

[Event "Early-Titled-Tuesday-Blitz-June-18-2024"]
[Site "Chess.com"]
[Date "2024.06.18"]
[Round "2"]
[White "Mikasinski"]
[Black "Pakarma"]
[Result "1-0"]
[WhiteElo "2712"]
[BlackElo "2437"]
[TimeControl "180+1"]
[EndTime "8:18:31 PDT"]
[Termination "Mikasinski won on time"]

1. e4 {[%clk 0:03:00.9]} 1... c5 {[%clk 0:02:44.6]} 2. Nf3 {[%clk 0:02:56.5]}
2... Nc6 {[%clk 0:02:43.5]} 3. d4 {[%clk 0:02:54.6]} 3... cxd4 {[%clk
0:02:41.9]} 4. Nxd4 {[%clk 0:02:55]} 4... e5 {[%clk 0:02:42.2]} 5. Nb5 {[%clk
0:02:55]} 5... d6 {[%clk 0:02:42.3]} 6. a4 {[%clk 0:02:53.7]} 6... Be6 {[%clk
0:02:40.9]} 7. N1a3 {[%clk 0:02:43]} 7... a6 {[%clk 0:02:34.5]} 8. Nc3 {[%clk
0:02:42.6]} 8... Be7 {[%clk 0:02:33.1]} 9. Nc4 {[%clk 0:02:34.5]} 9... Rc8
{[%clk 0:02:29.6]} 10. Nd5 {[%clk 0:02:32.6]} 10... Bxd5 {[%clk 0:02:14.3]} 11.
exd5 {[%clk 0:02:25.9]} 11... Nb8 {[%clk 0:02:14.2]} 12. a5 {[%clk 0:02:24.1]}
12... Nd7 {[%clk 0:02:14]} 13. b3 {[%clk 0:02:17.2]} 13... Ngf6 {[%clk
0:01:54.5]} 14. Ba3 {[%clk 0:02:15.7]} 14... Nc5 {[%clk 0:01:54.4]} 15. Be2
{[%clk 0:02:06.9]} 15... O-O {[%clk 0:01:53.4]} 16. O-O {[%clk 0:02:04.3]} 16...
Nfd7 {[%clk 0:01:36.8]} 17. Kh1 {[%clk 0:01:50.7]} 17... f5 {[%clk 0:01:24.7]}
18. f4 {[%clk 0:01:49.1]} 18... exf4 {[%clk 0:01:13.2]} 19. Rxf4 {[%clk
0:01:47.4]} 19... Ne4 {[%clk 0:01:03.1]} 20. Rxe4 {[%clk 0:01:30.3]} 20... fxe4
{[%clk 0:01:02.3]} 21. Bg4 {[%clk 0:01:31]} 21... Rxc4 {[%clk 0:00:45.8]} 22.
bxc4 {[%clk 0:01:27]} 22... Ne5 {[%clk 0:00:45.8]} 23. Be6+ {[%clk 0:01:21.7]}
23... Kh8 {[%clk 0:00:44.9]} 24. Qe2 {[%clk 0:01:22.2]} 24... Bg5 {[%clk
0:00:30.3]} 25. c5 {[%clk 0:01:18.2]} 25... Qf6 {[%clk 0:00:20.4]} 26. c6 {[%clk
0:01:12.4]} 26... bxc6 {[%clk 0:00:13]} 27. Bxd6 {[%clk 0:01:12.1]} 27... Nc4
{[%clk 0:00:13]} 28. Rg1 {[%clk 0:00:54.3]} 28... Nxd6 {[%clk 0:00:12]} 29. Qxa6
{[%clk 0:00:54.6]} 29... Be3 {[%clk 0:00:06.9]} 30. Rb1 {[%clk 0:00:48.6]} 30...
Nb5 {[%clk 0:00:05.1]} 31. h3 {[%clk 0:00:36.1]} 31... Nc3 {[%clk 0:00:05.3]}
32. Ra1 {[%clk 0:00:07.5]} 32... cxd5 {[%clk 0:00:04.7]} 33. Bc8 {[%clk
0:00:06.5]} 33... Qxa6 {[%clk 0:00:03.9]} 34. Bxa6 {[%clk 0:00:07.4]} 34... d4
{[%clk 0:00:04]} 35. Bb7 {[%clk 0:00:07.6]} 35... Bd2 {[%clk 0:00:03.6]} 36. a6
{[%clk 0:00:06.5]} 36... Nb5 {[%clk 0:00:03.9]} 37. Bxe4 {[%clk 0:00:06.3]}
37... Rf7 {[%clk 0:00:02.1]} 38. Rb1 {[%clk 0:00:06]} 1-0

[Event "Early-Titled-Tuesday-Blitz-June-18-2024"]
[Site "Chess.com"]
[Date "2024.06.18"]
[Round "2"]
[White "SargissyanSargis"]
[Black "jk13"]
[Result "0-1"]
[WhiteElo "2414"]
[BlackElo "2687"]
[TimeControl "180+1"]
[EndTime "8:18:31 PDT"]
[Termination "jk13 won on time"]

1. e4 {[%clk 0:03:00.9]} 1... e5 {[%clk 0:02:58.8]} 2. Nf3 {[%clk 0:03:00.6]}
2... Nc6 {[%clk 0:02:58]} 3. Bb5 {[%clk 0:03:01]} 3... a6 {[%clk 0:02:58.5]} 4.
Ba4 {[%clk 0:03:01.4]} 4... Nf6 {[%clk 0:02:59.2]} 5. d3 {[%clk 0:03:01.5]} 5...
b5 {[%clk 0:02:59.9]} 6. Bb3 {[%clk 0:03:01.2]} 6... Bc5 {[%clk 0:03:00.8]} 7.
Nc3 {[%clk 0:03:01.5]} 7... O-O {[%clk 0:03:01.2]} 8. Nd5 {[%clk 0:03:00.3]}
8... Re8 {[%clk 0:03:00.6]} 9. c3 {[%clk 0:02:45.3]} 9... Bf8 {[%clk 0:02:44.5]}
10. Bg5 {[%clk 0:02:42.6]} 10... Be7 {[%clk 0:02:44.2]} 11. Nxe7+ {[%clk
0:02:39.7]} 11... Qxe7 {[%clk 0:02:45.1]} 12. O-O {[%clk 0:02:39.7]} 12... d6
{[%clk 0:02:44.2]} 13. h3 {[%clk 0:02:34.4]} 13... Nd8 {[%clk 0:02:43.7]} 14.
Re1 {[%clk 0:02:32.5]} 14... Ne6 {[%clk 0:02:43.9]} 15. Bh4 {[%clk 0:02:31.2]}
15... h6 {[%clk 0:02:38.6]} 16. d4 {[%clk 0:02:29]} 16... Nf4 {[%clk 0:02:38.7]}
17. a4 {[%clk 0:02:18.4]} 17... Bb7 {[%clk 0:02:31.2]} 18. axb5 {[%clk
0:01:50.8]} 18... axb5 {[%clk 0:02:31.2]} 19. Rxa8 {[%clk 0:01:50.9]} 19... Bxa8
{[%clk 0:02:32]} 20. Nd2 {[%clk 0:01:03.8]} 20... c5 {[%clk 0:02:24]} 21. Bc2
{[%clk 0:00:40.4]} 21... Bb7 {[%clk 0:02:03.9]} 22. Nf1 {[%clk 0:00:34.7]} 22...
Qe6 {[%clk 0:01:30.7]} 23. Bg3 {[%clk 0:00:22.4]} 23... Ng6 {[%clk 0:01:18.9]}
24. d5 {[%clk 0:00:19.7]} 24... Qe7 {[%clk 0:01:15.3]} 25. Ne3 {[%clk
0:00:20.3]} 25... Bc8 {[%clk 0:01:15.7]} 26. Bh2 {[%clk 0:00:19.9]} 26... Qa7
{[%clk 0:01:13.2]} 27. g4 {[%clk 0:00:19.5]} 27... c4 {[%clk 0:01:06.1]} 28. Nf5
{[%clk 0:00:18.7]} 28... Bxf5 {[%clk 0:00:55.2]} 29. gxf5 {[%clk 0:00:17.4]}
29... Ne7 {[%clk 0:00:55.9]} 30. Bg3 {[%clk 0:00:17]} 30... Kh7 {[%clk
0:00:51.2]} 31. Bh4 {[%clk 0:00:17.2]} 31... Neg8 {[%clk 0:00:51.1]} 32. Kh2
{[%clk 0:00:16]} 32... Nd7 {[%clk 0:00:46]} 33. Rg1 {[%clk 0:00:16.2]} 33...
Ngf6 {[%clk 0:00:46.6]} 34. Qf3 {[%clk 0:00:15.7]} 34... Rg8 {[%clk 0:00:46.4]}
35. Qd1 {[%clk 0:00:12.4]} 35... g5 {[%clk 0:00:39]} 36. fxg6+ {[%clk 0:00:12]}
36... fxg6 {[%clk 0:00:39.7]} 37. Qf3 {[%clk 0:00:11.8]} 37... Rf8 {[%clk
0:00:27.9]} 38. Qe2 {[%clk 0:00:04.7]} 38... Rf7 {[%clk 0:00:18.9]} 39. Rg2
{[%clk 0:00:03.5]} 39... Nf8 {[%clk 0:00:17.4]} 40. Bg3 {[%clk 0:00:01.6]} 40...
Nh5 {[%clk 0:00:17.1]} 41. h4 {[%clk 0:00:01.5]} 41... Nf4 {[%clk 0:00:15.5]}
42. Bxf4 {[%clk 0:00:01.4]} 42... Rxf4 {[%clk 0:00:16.4]} 0-1

[Event "Early-Titled-Tuesday-Blitz-June-18-2024"]
[Site "Chess.com"]
[Date "2024.06.18"]
[Round "2"]
[White "Forge13"]
[Black "maracayo"]
[Result "1-0"]
[WhiteElo "2695"]
[BlackElo "2416"]
[TimeControl "180+1"]
[EndTime "8:18:32 PDT"]
[Termination "Forge13 won on time"]

1. e4 {[%clk 0:03:00.9]} 1... d6 {[%clk 0:02:59.7]} 2. d4 {[%clk 0:03:00.4]}
2... Nf6 {[%clk 0:02:59.7]} 3. Nc3 {[%clk 0:03:00.9]} 3... c6 {[%clk 0:03:00]}
4. g3 {[%clk 0:02:56.1]} 4... Qa5 {[%clk 0:02:59.5]} 5. Bg2 {[%clk 0:02:55.7]}
5... e5 {[%clk 0:03:00]} 6. Ne2 {[%clk 0:02:55.4]} 6... Be7 {[%clk 0:02:59.7]}
7. O-O {[%clk 0:02:55]} 7... O-O {[%clk 0:02:59.3]} 8. h3 {[%clk 0:02:54.7]}
8... Re8 {[%clk 0:02:58.7]} 9. a4 {[%clk 0:02:49.5]} 9... b5 {[%clk 0:02:47.8]}
10. Bd2 {[%clk 0:02:43.1]} 10... b4 {[%clk 0:02:47.2]} 11. Na2 {[%clk
0:02:42.8]} 11... c5 {[%clk 0:02:45.4]} 12. c3 {[%clk 0:02:36.3]} 12... Na6
{[%clk 0:02:31.5]} 13. Nac1 {[%clk 0:02:32.2]} 13... Rb8 {[%clk 0:01:41]} 14.
Qc2 {[%clk 0:02:14.5]} 14... cxd4 {[%clk 0:01:23.6]} 15. cxd4 {[%clk 0:02:13.8]}
15... Be6 {[%clk 0:01:18.3]} 16. Nb3 {[%clk 0:02:10]} 16... Qc7 {[%clk
0:00:59.7]} 17. Qxc7 {[%clk 0:02:06.3]} 17... Nxc7 {[%clk 0:01:00.6]} 18. d5
{[%clk 0:01:57.8]} 18... Bd7 {[%clk 0:00:59]} 19. Nec1 {[%clk 0:01:39.5]} 19...
Na6 {[%clk 0:00:54.8]} 20. Re1 {[%clk 0:01:34.7]} 20... Rec8 {[%clk 0:00:52.6]}
21. Bf1 {[%clk 0:01:34.7]} 21... Nc5 {[%clk 0:00:49.7]} 22. Nxc5 {[%clk
0:01:23.4]} 22... dxc5 {[%clk 0:00:50.6]} 23. b3 {[%clk 0:01:19.1]} 23... Ne8
{[%clk 0:00:47]} 24. Nd3 {[%clk 0:01:17.6]} 24... f6 {[%clk 0:00:46]} 25. Nb2
{[%clk 0:01:16.7]} 25... Nd6 {[%clk 0:00:39.6]} 26. f3 {[%clk 0:01:17.1]} 26...
Rd8 {[%clk 0:00:31.3]} 27. Kg2 {[%clk 0:01:16.5]} 27... Bc8 {[%clk 0:00:31]} 28.
Rec1 {[%clk 0:01:15.7]} 28... Nb7 {[%clk 0:00:28.3]} 29. Ba6 {[%clk 0:01:09.8]}
29... Na5 {[%clk 0:00:26.8]} 30. Bc4 {[%clk 0:01:08.3]} 30... Bd6 {[%clk
0:00:25.9]} 31. Be3 {[%clk 0:01:07.7]} 31... Rb6 {[%clk 0:00:25.1]} 32. Rab1
{[%clk 0:01:04.5]} 32... Bd7 {[%clk 0:00:22.9]} 33. Nd3 {[%clk 0:01:03.6]} 33...
Rc8 {[%clk 0:00:22.4]} 34. Rb2 {[%clk 0:00:59]} 34... Rbb8 {[%clk 0:00:21.6]}
35. Rbc2 {[%clk 0:00:59.2]} 35... Rc7 {[%clk 0:00:17.9]} 36. g4 {[%clk
0:00:57.5]} 36... h6 {[%clk 0:00:17.1]} 37. h4 {[%clk 0:00:57.4]} 37... Bc8
{[%clk 0:00:14.3]} 38. Kf2 {[%clk 0:00:54.6]} 38... Nxc4 {[%clk 0:00:14.1]} 39.
Rxc4 {[%clk 0:00:50.8]} 39... Ba6 {[%clk 0:00:13.8]} 40. Nb2 {[%clk 0:00:51.7]}
40... Bxc4 {[%clk 0:00:10.9]} 41. Nxc4 {[%clk 0:00:52.6]} 41... Rd8 {[%clk
0:00:09.2]} 42. Na5 {[%clk 0:00:51.4]} 42... Kf7 {[%clk 0:00:08.2]} 43. Nc6
{[%clk 0:00:51.3]} 43... Rxc6 {[%clk 0:00:07.8]} 44. dxc6 {[%clk 0:00:51.5]}
44... Rc8 {[%clk 0:00:08.7]} 45. Bxc5 {[%clk 0:00:51.7]} 45... Rxc6 {[%clk
0:00:08.8]} 46. Be3 {[%clk 0:00:52.3]} 46... Rxc1 {[%clk 0:00:07.5]} 47. Bxc1
{[%clk 0:00:53.2]} 47... Bc5+ {[%clk 0:00:07]} 48. Ke2 {[%clk 0:00:53.4]} 48...
Ke6 {[%clk 0:00:06.4]} 49. Kd3 {[%clk 0:00:52.3]} 49... Kd6 {[%clk 0:00:06.6]}
50. Kc4 {[%clk 0:00:52.3]} 50... Kc6 {[%clk 0:00:06.9]} 51. a5 {[%clk
0:00:41.2]} 51... a6 {[%clk 0:00:06.6]} 52. Bd2 {[%clk 0:00:40.8]} 52... Be7
{[%clk 0:00:04.4]} 53. Bxb4 {[%clk 0:00:38.3]} 1-0

[Event "Early-Titled-Tuesday-Blitz-June-18-2024"]
[Site "Chess.com"]
[Date "2024.06.18"]
[Round "2"]
[White "Harry_Rakkel"]
[Black "Polish_fighter3000"]
[Result "0-1"]
[WhiteElo "2669"]
[BlackElo "3078"]
[TimeControl "180+1"]
[EndTime "8:18:33 PDT"]
[Termination "Polish_fighter3000 won on time"]

1. e4 {[%clk 0:03:00.9]} 1... c6 {[%clk 0:03:00]} 2. d4 {[%clk 0:02:56.6]} 2...
d5 {[%clk 0:03:00.4]} 3. e5 {[%clk 0:02:56.1]} 3... Bf5 {[%clk 0:02:57.9]} 4.
Nc3 {[%clk 0:02:55.9]} 4... e6 {[%clk 0:02:52.8]} 5. g4 {[%clk 0:02:56.1]} 5...
Bg6 {[%clk 0:02:52.9]} 6. Nge2 {[%clk 0:02:56.2]} 6... c5 {[%clk 0:02:44]} 7. h4
{[%clk 0:02:54.6]} 7... h5 {[%clk 0:02:43.2]} 8. Nf4 {[%clk 0:02:53.7]} 8... Nc6
{[%clk 0:02:43.2]} 9. Nxg6 {[%clk 0:02:38]} 9... fxg6 {[%clk 0:02:44.1]} 10. Bb5
{[%clk 0:02:37]} 10... Qc7 {[%clk 0:02:23.9]} 11. Bg5 {[%clk 0:02:28.5]} 11...
cxd4 {[%clk 0:02:11.2]} 12. Qxd4 {[%clk 0:02:23.9]} 12... Ne7 {[%clk 0:02:11.5]}
13. O-O-O {[%clk 0:02:18.6]} 13... a6 {[%clk 0:02:00.2]} 14. Bxc6+ {[%clk
0:02:16]} 14... Nxc6 {[%clk 0:02:01.1]} 15. Qa4 {[%clk 0:02:09]} 15... Bb4
{[%clk 0:01:12.6]} 16. Nb5 {[%clk 0:01:58.2]} 16... Qb6 {[%clk 0:01:13.1]} 17.
Nd4 {[%clk 0:01:50.4]} 17... Kf7 {[%clk 0:01:10.4]} 18. Be3 {[%clk 0:01:45.7]}
18... Qa5 {[%clk 0:00:54.6]} 19. Qb3 {[%clk 0:01:30.5]} 19... Rac8 {[%clk
0:00:53.8]} 20. a3 {[%clk 0:01:11.1]} 20... Be7 {[%clk 0:00:51.5]} 21. Qxb7
{[%clk 0:00:58.4]} 21... Nxe5 {[%clk 0:00:16.7]} 22. Nb3 {[%clk 0:00:38.6]}
22... Qc7 {[%clk 0:00:10.3]} 23. Qxc7 {[%clk 0:00:37.8]} 23... Rxc7 {[%clk
0:00:11.2]} 24. gxh5 {[%clk 0:00:34.6]} 24... Rxh5 {[%clk 0:00:10.6]} 25. Bf4
{[%clk 0:00:28.7]} 25... Rc4 {[%clk 0:00:10.5]} 26. Bg3 {[%clk 0:00:23.2]} 26...
Bf6 {[%clk 0:00:09]} 27. Nd2 {[%clk 0:00:16.5]} 27... Nd3+ {[%clk 0:00:05.3]}
28. Kb1 {[%clk 0:00:15.5]} 28... Nxb2 {[%clk 0:00:06]} 29. Nxc4 {[%clk
0:00:14.5]} 29... Nxc4 {[%clk 0:00:06.9]} 30. Rd3 {[%clk 0:00:13.1]} 30... g5
{[%clk 0:00:03.8]} 31. Ka2 {[%clk 0:00:10.1]} 31... gxh4 {[%clk 0:00:04.2]} 32.
Bh2 {[%clk 0:00:09.5]} 32... Rf5 {[%clk 0:00:04.6]} 33. f3 {[%clk 0:00:08.4]}
33... g5 {[%clk 0:00:04.8]} 34. Rb3 {[%clk 0:00:07.9]} 34... Kg6 {[%clk
0:00:02.9]} 35. Rd1 {[%clk 0:00:06.9]} 35... d4 {[%clk 0:00:02.6]} 36. Rdd3
{[%clk 0:00:06.4]} 36... e5 {[%clk 0:00:02.4]} 37. Rb8 {[%clk 0:00:05.6]} 37...
Ne3 {[%clk 0:00:02.7]} 0-1